bitfinex/quotes_BTCUSD_20251027
["timestamp","ask_amount","ask_price","bid_price","bid_amount"]
[1761547397555,0.17686084,115700.0,115690.0,0.33724201]
[1761547397774,0.17686084,115700.0,115690.0,0.8211645]
[1761547400150,0.17686084,115700.0,115690.0,0.64828872]
[1761547400367,0.21124962,115700.0,115690.0,0.64828872]
[1761547400791,0.21124962,115700.0,115690.0,0.49552872]
[1761547401010,0.17686084,115700.0,115690.0,0.64824872]
[1761547401227,0.17686084,115700.0,115690.0,0.00999999]
[1761547401469,0.17686084,115700.0,115690.0,0.49392248]
[1761547405766,0.17686084,115700.0,115690.0,0.00999999]
[1761547405920,0.17686084,115700.0,115690.0,0.49392248]
[1761547406333,0.23058541,115700.0,115690.0,0.49392248]
[1761547407379,0.23058541,115700.0,115690.0,0.00999999]
[1761547410208,0.17287578,115690.0,115680.0,0.64824872]
[1761547410426,0.17287578,115690.0,115680.0,0.63824873]
[1761547410614,0.17287578,115690.0,115680.0,0.82113945]
[1761547411408,0.17287578,115690.0,115680.0,0.81113946]
[1761547411624,0.17287578,115690.0,115680.0,0.82113945]
[1761547411833,0.17287578,115690.0,115680.0,0.64824872]
[1761547412443,0.17287578,115690.0,115680.0,0.63824873]
[1761547412652,0.17287578,115690.0,115680.0,0.64824872]
[1761547413018,0.17287578,115690.0,115680.0,0.63824873]
[1761547413232,0.17287578,115690.0,115680.0,0.64824872]
[1761547413410,0.17287578,115690.0,115680.0,0.63824873]
[1761547415000,0.17287578,115690.0,115680.0,0.64824872]
[1761547415371,0.2128219,115690.0,115680.0,0.64824872]
[1761547416403,0.17313664,115690.0,115680.0,0.64824872]
[1761547417120,0.17313664,115690.0,115680.0,0.49552872]
[1761547417537,0.17413664,115690.0,115680.0,0.49552872]
[1761547418314,0.17713664,115690.0,115680.0,0.49552872]
[1761547420177,0.17713664,115690.0,115680.0,1.49552872]
[1761547421275,0.17576664,115690.0,115680.0,1.49552872]
[1761547422880,0.17576664,115690.0,115680.0,1.66841945]
[1761547424608,0.17576664,115690.0,115680.0,1.49552872]
[1761547425513,0.17576664,115690.0,115680.0,1.01160623]
[1761547425730,0.17576664,115690.0,115680.0,1.49552872]
[1761547434312,0.17576664,115690.0,115680.0,1.00160624]
[1761547437980,0.74950814,115690.0,115680.0,1.00160624]
[1761547438188,1.10815945,115690.0,115680.0,0.60408374]
[1761547438398,1.61802159,115690.0,115680.0,0.60408374]
[1761547438609,1.7078406,115690.0,115680.0,0.60408374]
[1761547439044,1.7068406,115690.0,115680.0,0.60408374]
[1761547439462,1.7078406,115690.0,115680.0,0.60408374]
[1761547439868,1.7068406,115690.0,115680.0,0.60408374]
[1761547440070,1.7088406,115690.0,115680.0,0.60408374]
[1761547440328,1.7058406,115690.0,115680.0,0.60408374]
[1761547440535,1.71453513,115690.0,115680.0,0.60408374]
[1761547440759,1.72153513,115690.0,115680.0,0.60408374]
[1761547440967,1.71453513,115690.0,115680.0,0.60408374]
[1761547441175,1.23061264,115690.0,115680.0,0.60408374]
[1761547441590,1.24061264,115690.0,115680.0,0.60408374]
[1761547442845,0.17293558,115650.0,115640.0,0.00999999]
[1761547443054,0.17295053,115640.0,115630.0,0.00200624]
[1761547444096,0.17095053,115640.0,115630.0,0.00200624]
[1761547444306,0.17095053,115640.0,115630.0,0.0004]
[1761547444732,0.17095053,115640.0,115630.0,0.0054]
[1761547445159,0.17095053,115640.0,115630.0,0.01039999]
[1761547445334,0.26076954,115640.0,115630.0,0.01039999]
[1761547446473,0.35058855,115640.0,115630.0,0.01039999]
[1761547446894,0.83451104,115640.0,115630.0,0.01039999]
[1761547447346,0.35058855,115640.0,115630.0,0.01039999]
[1761547447594,0.83451104,115640.0,115630.0,0.0004]
[1761547447788,0.88979104,115640.0,115630.0,0.0004]
[1761547448208,0.91573901,115640.0,115630.0,0.0064]
[1761547448429,0.91673901,115640.0,115630.0,0.0064]
[1761547449267,0.26176954,115640.0,115630.0,0.49032249]
[1761547449486,0.41448954,115640.0,115630.0,0.49032249]
[1761547449687,0.41448954,115640.0,115630.0,0.0064]
[1761547449892,0.89841203,115640.0,115630.0,0.0064]
[1761547450331,1.23841203,115640.0,115630.0,0.0064]
[1761547450546,1.32823104,115640.0,115630.0,0.0064]
[1761547450705,0.84430855,115640.0,115630.0,0.0064]
[1761547450925,1.32823104,115640.0,115630.0,0.0064]
[1761547451807,0.84430855,115640.0,115630.0,0.0064]
[1761547453064,0.69158855,115640.0,115630.0,0.0064]
[1761547453263,0.89962855,115640.0,115630.0,0.0064]
[1761547455018,1.33035541,115640.0,115630.0,0.0064]
[1761547455477,0.89962855,115640.0,115630.0,0.0064]
[1761547455690,1.33035541,115640.0,115630.0,0.0064]
[1761547455851,1.3403554,115640.0,115630.0,0.0064]
[1761547460288,0.90962854,115640.0,115630.0,0.0064]
[1761547460491,0.90962854,115640.0,115630.0,0.00613914]
[1761547463376,0.92817386,115640.0,115630.0,0.00613914]
[1761547467125,1.35890072,115640.0,115630.0,0.00613914]
[1761547467338,1.38221711,115640.0,115630.0,0.00613914]
[1761547467569,0.95149025,115640.0,115630.0,0.00613914]
[1761547467861,0.92817386,115640.0,115630.0,0.00613914]
[1761547468276,0.95149025,115640.0,115630.0,0.00613914]
[1761547470253,1.38221711,115640.0,115630.0,0.00613914]
[1761547471515,1.41330866,115640.0,115630.0,0.00613914]
[1761547473316,1.41329175,115640.0,115630.0,0.00613914]
[1761547474361,1.38999227,115640.0,115630.0,0.00613914]
[1761547474965,0.95926541,115640.0,115630.0,0.00613914]
[1761547475178,1.38999227,115640.0,115630.0,0.00613914]
[1761547475998,1.18195227,115640.0,115630.0,0.00613914]
[1761547476168,1.33467227,115640.0,115630.0,0.00613914]
[1761547476367,1.43657046,115640.0,115630.0,0.00613914]
[1761547476684,1.20998514,115640.0,115630.0,0.00613914]
[1761547476870,1.43668145,115640.0,115630.0,0.00613914]
[1761547477471,1.00595459,115640.0,115630.0,0.00613914]
[1761547477731,1.43668145,115640.0,115630.0,0.00613914]
[1761547480343,1.22864145,115640.0,115630.0,0.00613914]
[1761547480573,1.43668145,115640.0,115630.0,0.00613914]
[1761547481870,1.22864145,115640.0,115630.0,0.00613914]
[1761547482068,1.43668145,115640.0,115630.0,0.00613914]
[1761547483118,1.22864145,115640.0,115630.0,0.00613914]
[1761547483326,1.43668145,115640.0,115630.0,0.00613914]
[1761547484004,0.69809559,115640.0,115630.0,0.00613914]
[1761547484239,0.8042374,115640.0,115630.0,0.00613914]
[1761547484461,0.8275767,115640.0,115630.0,0.00613914]
[1761547484937,1.25830356,115640.0,115630.0,0.00613914]
[1761547485149,0.8042374,115640.0,115630.0,0.00613914]
[1761547485361,0.89405641,115640.0,115630.0,0.00613914]
[1761547486474,0.91739394,115640.0,115630.0,0.00613914]
[1761547489324,0.88630239,115640.0,115630.0,0.00613914]
[1761547490147,0.73358239,115640.0,115630.0,0.00613914]
[1761547490321,0.88630239,115640.0,115630.0,0.00613914]
[1761547490528,0.73358239,115640.0,115630.0,0.00613914]
[1761547490777,0.88630239,115640.0,115630.0,0.00613914]
[1761547491000,0.73358239,115640.0,115630.0,0.00613914]
[1761547491178,0.88630239,115640.0,115630.0,0.00613914]
[1761547491575,0.73358239,115640.0,115630.0,0.00613914]
[1761547491763,0.88630239,115640.0,115630.0,0.00613914]
[1761547492301,0.73358239,115640.0,115630.0,0.00613914]
[1761547492481,1.4034408,115640.0,115630.0,0.00613914]
[1761547493138,0.97271394,115640.0,115630.0,0.00613914]
[1761547493345,1.4034408,115640.0,115630.0,0.00613914]
[1761547495414,1.37234925,115640.0,115630.0,0.00613914]
[1761547497939,0.19060684,115640.0,115630.0,0.436866]
[1761547498165,0.17395053,115640.0,115630.0,0.60983149]
[1761547498369,0.001,115640.0,115630.0,0.62143772]
[1761547499001,0.001,115640.0,115630.0,0.8103]
[1761547499437,0.001,115640.0,115630.0,1.1503]
[1761547499644,0.001,115640.0,115630.0,1.17624124]
[1761547500832,0.001,115640.0,115630.0,1.26606025]
[1761547501042,0.001,115640.0,115630.0,1.69678711]
[1761547501514,0.001,115640.0,115630.0,1.26606025]
[1761547501959,0.001,115640.0,115630.0,1.69678711]
[1761547504407,0.001,115640.0,115630.0,1.54410711]
[1761547504625,0.001,115640.0,115630.0,1.10338026]
[1761547504819,0.001,115640.0,115630.0,1.32138025]
[1761547505667,0.001,115640.0,115630.0,1.32134025]
[1761547509007,0.001,115640.0,115630.0,0.89061339]
[1761547509250,0.001,115640.0,115630.0,1.29539901]
[1761547510189,0.001,115640.0,115630.0,1.72612587]
[1761547511961,0.001,115640.0,115630.0,1.83285639]
[1761547513942,0.001,115640.0,115630.0,1.85879362]
[1761547516001,0.001,115640.0,115630.0,1.86368922]
[1761547516721,0.001,115640.0,115630.0,1.85879362]
[1761547518557,0.001,115640.0,115630.0,0.68264938]
[1761547518718,0.001,115640.0,115630.0,1.3746215]
[1761547518926,0.001,115640.0,115630.0,1.85871362]
[1761547519354,0.001,115640.0,115630.0,0.68264938]
[1761547519541,0.001,115640.0,115630.0,1.34868427]
[1761547519969,0.001,115640.0,115630.0,1.37462275]
[1761547520174,0.001,115640.0,115630.0,1.34868427]
[1761547520619,0.001,115640.0,115630.0,1.37462275]
[1761547521542,0.001,115640.0,115630.0,1.34868427]
[1761547521968,0.001,115640.0,115630.0,1.37462275]
[1761547522417,0.001,115640.0,115630.0,1.85871487]
[1761547523874,0.001,115640.0,115630.0,2.00631487]
[1761547525705,0.02354268,115710.0,115700.0,0.18446707]
[1761547525928,0.00020515,115710.0,115700.0,1.34143359]
[1761547526142,0.00020515,115710.0,115700.0,1.96202628]
[1761547526988,0.00320515,115710.0,115700.0,1.96202628]
[1761547527411,0.00020515,115710.0,115700.0,1.96702628]
[1761547527825,0.00020515,115710.0,115700.0,1.82300261]
[1761547528023,0.00020515,115710.0,115700.0,1.00793837]
[1761547528271,0.00020515,115710.0,115700.0,1.53873416]
[1761547528677,0.00020515,115710.0,115700.0,2.02282628]
[1761547529107,0.00020515,115710.0,115700.0,1.81442628]
[1761547529330,0.00020515,115710.0,115700.0,2.02282628]
[1761547530654,0.00020515,115710.0,115700.0,2.02278628]
[1761547530883,0.00020515,115710.0,115700.0,1.96750628]
[1761547531064,0.00020515,115710.0,115700.0,1.81442628]
[1761547531472,0.00020515,115710.0,115700.0,2.02278628]
[1761547531730,0.0002,115760.0,115750.0,0.17278617]
[1761547531954,0.0002,115760.0,115750.0,0.82176452]
[1761547532399,0.0002,115760.0,115750.0,0.3376724]
[1761547532615,0.0002,115760.0,115750.0,0.82176452]
[1761547533056,0.0002,115760.0,115750.0,0.82376452]
[1761547533922,0.0002,115760.0,115750.0,0.79737801]
[1761547537112,0.17297125,115760.0,115750.0,0.00360624]
[1761547537458,0.00122527,115760.0,115750.0,0.1863924]
[1761547537826,0.17399652,115760.0,115750.0,0.17639241]
[1761547538237,0.00122527,115760.0,115750.0,0.1863924]
[1761547538588,0.00122527,115760.0,115750.0,0.17639241]
[1761547538798,0.00122527,115760.0,115750.0,0.17439241]
[1761547539008,0.17399652,115760.0,115750.0,0.01160623]
[1761547539214,0.17699652,115760.0,115750.0,0.01160623]
[1761547539442,0.17399652,115760.0,115750.0,0.1843924]
[1761547539722,0.17699652,115760.0,115750.0,0.01160623]
[1761547539966,0.17399652,115760.0,115750.0,0.01160623]
[1761547540224,0.17399652,115760.0,115750.0,0.46931184]
[1761547540434,0.17699652,115760.0,115750.0,0.46931184]
[1761547540628,0.17399652,115760.0,115750.0,0.46931184]
[1761547541764,0.17399652,115760.0,115750.0,0.01160623]
[1761547542174,0.17699652,115760.0,115750.0,0.01160623]
[1761547543894,0.17699652,115760.0,115750.0,0.46931184]
[1761547544884,0.17699652,115760.0,115750.0,0.01160623]
[1761547545709,0.17278617,115750.0,115730.0,0.01160623]
[1761547545883,0.17281603,115730.0,115720.0,0.00160624]
[1761547547314,0.17581603,115730.0,115720.0,0.01160623]
[1761547548545,0.17281603,115730.0,115720.0,0.01160623]
[1761547548749,0.17381603,115730.0,115720.0,0.00160624]
[1761547548954,0.17781603,115730.0,115720.0,0.01160623]
[1761547549762,0.17781603,115730.0,115720.0,0.00160624]
[1761547549954,0.17283097,115720.0,115710.0,0.98215752]
[1761547550391,0.17283097,115720.0,115710.0,0.00160624]
[1761547551136,0.17283097,115720.0,115710.0,0.17445214]
[1761547551321,0.17283097,115720.0,115710.0,0.18445213]
[1761547551972,0.17281603,115730.0,115710.0,0.17445214]
[1761547552173,0.17281603,115730.0,115720.0,0.00999999]
[1761547552887,0.17281603,115730.0,115710.0,0.63215775]
[1761547553075,0.17283097,115720.0,115710.0,0.64215774]
[1761547553472,0.17283097,115720.0,115710.0,0.63215775]
[1761547553733,0.17283097,115720.0,115710.0,0.64215774]
[1761547554530,0.17281603,115730.0,115710.0,0.64215774]
[1761547554843,0.17281603,115730.0,115720.0,0.00999999]
[1761547555255,0.17581603,115730.0,115720.0,0.00999999]
[1761547555457,0.17281603,115730.0,115720.0,0.00999999]
[1761547555787,0.17283097,115720.0,115710.0,0.63215775]
[1761547556222,0.17283097,115720.0,115710.0,0.64215774]
[1761547556426,0.17283097,115720.0,115710.0,0.63215775]
[1761547556591,0.17303609,115720.0,115710.0,0.64215774]
[1761547557037,0.17303609,115720.0,115710.0,0.63215775]
[1761547557250,0.17303609,115720.0,115710.0,0.64215774]
[1761547557880,0.17303609,115720.0,115710.0,1.15188093]
[1761547559098,0.05462908,115760.0,115750.0,0.1843924]
[1761547559311,0.0002,115760.0,115750.0,0.8763468]
[1761547560770,0.0022,115760.0,115750.0,0.8763468]
[1761547561003,0.0022,115760.0,115750.0,0.8223068]
[1761547561299,0.17297125,115760.0,115750.0,0.33698616]
[1761547561474,0.2973631,115760.0,115740.0,0.81227711]
[1761547561683,0.16978617,115750.0,115740.0,0.3385627]
[1761547561958,0.16978617,115750.0,115740.0,0.1844027]
[1761547562357,0.16978617,115750.0,115740.0,0.00160624]
[1761547562554,0.16978617,115750.0,115740.0,0.17440734]
[1761547562783,0.16978617,115750.0,115740.0,0.00160624]
[1761547563756,0.16978617,115750.0,115740.0,0.01160623]
[1761547563976,0.16978617,115750.0,115740.0,0.18440733]
[1761547564422,0.1728011,115740.0,115730.0,0.01160623]
[1761547564832,0.1718011,115740.0,115730.0,0.00160624]
[1761547565305,0.1718011,115740.0,115730.0,0.01160623]
[1761547565511,0.3258811,115740.0,115730.0,0.01160623]
[1761547565707,0.3258811,115740.0,115730.0,0.00160624]
[1761547565912,0.3288811,115740.0,115730.0,0.01160623]
[1761547566133,0.3288811,115740.0,115730.0,0.00160624]
[1761547566349,0.3288811,115740.0,115730.0,0.01160623]
[1761547567101,0.3288811,115740.0,115730.0,0.4694883]
[1761547567449,0.3288811,115740.0,115730.0,0.01160623]
[1761547567863,0.3288811,115740.0,115730.0,0.00160624]
[1761547568123,0.3288811,115740.0,115730.0,0.01160623]
[1761547569098,0.3288811,115740.0,115730.0,0.00160624]
[1761547569302,0.3288811,115740.0,115730.0,0.01160623]
[1761547570084,0.3288811,115740.0,115730.0,0.00160624]
[1761547570315,0.3288811,115740.0,115730.0,0.01160623]
[1761547570522,0.32929127,115740.0,115730.0,0.00160624]
[1761547570734,0.32929127,115740.0,115730.0,0.01160623]
[1761547570941,0.17281603,115730.0,115720.0,0.4694883]
[1761547571530,0.17281603,115730.0,115720.0,0.45948831]
[1761547571710,0.17281603,115730.0,115720.0,0.4694883]
[1761547572120,0.17381603,115730.0,115720.0,0.4694883]
[1761547572321,0.17283097,115720.0,115710.0,0.00160624]
[1761547572524,0.1728459,115710.0,115700.0,0.00160624]
[1761547574178,0.1728459,115710.0,115700.0,0.01160623]
[1761547574595,0.1728459,115710.0,115700.0,0.18446707]
[1761547575050,0.1758459,115710.0,115700.0,0.18446707]
[1761547575869,0.1758459,115710.0,115700.0,0.17446708]
[1761547576130,0.003,115710.0,115700.0,0.17446708]
[1761547576318,0.02353753,115760.0,115750.0,0.75134836]
[1761547576503,0.0002,115760.0,115750.0,1.68473268]
[1761547576761,0.0002,115760.0,115750.0,1.62977268]
[1761547576968,0.0002,115760.0,115750.0,1.68505268]
[1761547577382,0.0002,115760.0,115750.0,1.71588931]
[1761547577772,0.0002,115760.0,115750.0,1.68505268]
[1761547577980,0.0002,115760.0,115750.0,1.68905268]
[1761547579828,0.0002,115760.0,115750.0,1.67905269]
[1761547580042,0.0002,115760.0,115750.0,1.68905268]
[1761547581749,0.00102019,115760.0,115750.0,1.68905268]
[1761547583101,0.03040867,115780.0,115770.0,1.04492382]
[1761547583330,0.03040867,115780.0,115770.0,1.28966283]
[1761547584377,0.03040867,115780.0,115770.0,1.34514283]
[1761547584586,0.03040867,115780.0,115770.0,1.35314283]
[1761547585004,0.03040867,115780.0,115770.0,1.35414283]
[1761547585512,0.03040867,115780.0,115770.0,1.35410283]
[1761547585729,0.03040867,115780.0,115770.0,1.36260411]
[1761547585943,0.03040867,115780.0,115770.0,1.69249659]
[1761547586130,0.03040867,115780.0,115770.0,1.69410283]
[1761547586801,0.03040867,115780.0,115770.0,1.69310283]
[1761547587010,0.03040867,115780.0,115770.0,1.68510283]
[1761547587394,0.03040867,115780.0,115770.0,1.68710283]
[1761547588106,0.03040867,115780.0,115770.0,1.63178283]
[1761547588756,0.03081862,115780.0,115770.0,1.63178283]
[1761547589421,0.03081862,115780.0,115770.0,1.47674283]
[1761547589664,0.03081862,115780.0,115770.0,1.37692383]
[1761547589889,0.20356002,115780.0,115770.0,0.98298523]
[1761547590109,0.03081862,115780.0,115770.0,0.81996786]
[1761547591443,0.20356002,115780.0,115770.0,0.64721154]
[1761547591587,0.03081862,115780.0,115770.0,0.81996786]
[1761547591830,0.20356002,115780.0,115770.0,0.63721155]
[1761547592252,0.20356002,115780.0,115770.0,0.80996787]
[1761547592419,0.20356002,115780.0,115770.0,0.81996786]
[1761547593265,0.20356002,115780.0,115770.0,0.81796786]
[1761547593582,0.20456002,115780.0,115770.0,0.81796786]
[1761547594034,0.03181862,115780.0,115770.0,0.81796786]
[1761547595341,0.20456002,115780.0,115770.0,0.81796786]
[1761547595769,0.03181862,115780.0,115770.0,0.81796786]
[1761547598234,0.07488853,115790.0,115780.0,0.18434763]
[1761547598450,0.07488853,115790.0,115780.0,1.68472791]
[1761547598890,0.07488853,115790.0,115780.0,1.68520791]
[1761547599105,0.07488853,115790.0,115780.0,1.47472791]
[1761547599581,0.07488853,115790.0,115780.0,1.68520791]
[1761547600592,0.07488853,115790.0,115780.0,1.47672791]
[1761547600806,0.07488853,115790.0,115780.0,1.68716791]
[1761547601040,0.07488853,115790.0,115780.0,1.47672791]
[1761547601257,0.07488853,115790.0,115780.0,1.67712792]
[1761547601746,0.07488853,115790.0,115780.0,1.47672791]
[1761547602170,0.07488853,115790.0,115780.0,1.67712792]
[1761547602374,0.07488853,115790.0,115780.0,0.46694032]
[1761547602672,0.07488853,115790.0,115780.0,1.25566563]
[1761547603112,0.07488853,115790.0,115780.0,1.29184791]
[1761547603317,0.07488853,115790.0,115780.0,1.13672791]
[1761547603497,0.07488853,115790.0,115780.0,1.01072662]
[1761547603669,0.07488853,115790.0,115780.0,1.16588662]
[1761547603885,0.07509347,115790.0,115780.0,1.16388662]
[1761547604383,0.07509347,115790.0,115780.0,1.2000689]
[1761547604602,0.07509347,115790.0,115780.0,1.62988791]
[1761547604820,0.07509347,115790.0,115780.0,1.43802799]
[1761547605032,0.07509347,115790.0,115780.0,1.68564791]
[1761547605221,0.07509347,115790.0,115780.0,1.70163524]
[1761547605666,0.07509347,115790.0,115780.0,1.73235947]
[1761547606091,0.07509347,115790.0,115780.0,1.73237745]
[1761547606323,0.07509347,115790.0,115780.0,1.73537745]
[1761547606504,0.07509347,115790.0,115780.0,1.52445745]
[1761547606706,0.07509347,115790.0,115780.0,1.73537745]
[1761547606969,0.07509347,115790.0,115780.0,1.51445746]
[1761547607170,0.07509347,115790.0,115780.0,1.68005745]
[1761547607380,0.07509347,115790.0,115780.0,1.64933322]
[1761547607726,0.07509347,115790.0,115780.0,1.63332791]
[1761547609420,1.11032409,115800.0,115790.0,0.56051499]
[1761547609624,1.11032409,115800.0,115790.0,1.28233307]
[1761547609761,1.11032409,115800.0,115790.0,1.47471299]
[1761547611646,1.11032409,115800.0,115790.0,1.28393931]
[1761547611862,1.11032409,115800.0,115790.0,1.47471299]
[1761547614873,1.110529,115800.0,115790.0,1.28393931]
[1761547616864,1.110529,115800.0,115790.0,1.43941931]
[1761547617624,1.110529,115800.0,115790.0,1.1941203]
[1761547618094,1.43868057,115800.0,115790.0,0.01160623]
[1761547618294,0.17272648,115790.0,115780.0,0.00160624]
[1761547618502,0.17272648,115790.0,115780.0,0.66248568]
[1761547618639,0.17272648,115790.0,115780.0,0.01160623]
[1761547619580,0.17572648,115790.0,115780.0,0.00160624]
[1761547619775,0.17572648,115790.0,115780.0,0.01160623]
[1761547621505,0.17572648,115790.0,115780.0,0.02888037]
[1761547621709,0.33116648,115790.0,115780.0,0.01888038]
[1761547621949,0.17572648,115790.0,115780.0,0.02888037]
[1761547622140,0.33112648,115790.0,115780.0,0.01888038]
[1761547622348,0.33112648,115790.0,115780.0,0.01160623]
[1761547622555,0.42958181,115790.0,115770.0,0.00160624]
[1761547622716,0.1727414,115780.0,115770.0,0.00160624]
[1761547623365,0.17275632,115770.0,115750.0,0.21760775]
[1761547623570,0.1727414,115780.0,115760.0,0.81798279]
[1761547623775,0.32815632,115770.0,115760.0,0.81798279]
[1761547624465,0.32815632,115770.0,115760.0,0.64521154]
[1761547624665,0.32815632,115770.0,115760.0,0.18437748]
[1761547625498,0.32354632,115770.0,115760.0,0.18437748]
[1761547625946,0.32354632,115770.0,115760.0,0.18737748]
[1761547626145,0.32354632,115770.0,115760.0,0.18437748]
[1761547628181,0.18137847,115780.0,115760.0,0.18437748]
[1761547628379,0.15528,115770.0,115760.0,0.18437748]
[1761547628583,0.15524,115770.0,115760.0,0.18437748]
[1761547628796,0.23661847,115780.0,115770.0,0.00999999]
[1761547628944,0.33661847,115780.0,115770.0,0.00999999]
[1761547629126,0.39185847,115780.0,115770.0,0.00999999]
[1761547629791,0.17275632,115770.0,115760.0,0.80798237]
[1761547629985,0.17275632,115770.0,115760.0,0.81798236]
[1761547630600,0.39485847,115780.0,115760.0,0.81798236]
[1761547630914,0.3279014,115780.0,115770.0,0.83524349]
[1761547631127,0.3279014,115780.0,115770.0,0.81796786]
[1761547631532,0.3279014,115780.0,115770.0,0.01160623]
[1761547632899,0.3309014,115780.0,115770.0,0.01160623]
[1761547633908,0.3309014,115780.0,115770.0,0.46922936]
[1761547635208,0.17275632,115770.0,115760.0,0.67657606]
[1761547635625,0.17275632,115770.0,115760.0,0.6781823]
[1761547636020,0.17275632,115770.0,115760.0,0.64200002]
[1761547638749,0.17575632,115770.0,115760.0,0.64200002]
[1761547640051,0.17575632,115770.0,115760.0,0.63200003]
[1761547640668,0.17575632,115770.0,115760.0,0.64200002]
[1761547641074,0.15792,115770.0,115760.0,0.63200003]
[1761547641321,0.15792,115770.0,115760.0,0.64200002]
[1761547641520,0.33067632,115770.0,115760.0,0.64200002]
[1761547642017,0.33067632,115770.0,115760.0,0.63200062]
[1761547642227,0.33067632,115770.0,115760.0,0.00160624]
[1761547642452,0.36975547,115770.0,115760.0,0.00999999]
[1761547642663,0.18140981,115760.0,115750.0,0.00160624]
[1761547643105,0.18140981,115760.0,115750.0,0.01160623]
[1761547643943,0.172799,115750.0,115740.0,0.01160623]
[1761547644120,0.327679,115750.0,115740.0,0.01160623]
[1761547644360,0.39309378,115750.0,115740.0,0.01160623]
[1761547644619,0.327679,115750.0,115740.0,0.01160623]
[1761547645206,0.327679,115750.0,115740.0,0.00160624]
[1761547645421,0.328679,115750.0,115740.0,0.01160623]
[1761547645625,0.332679,115750.0,115740.0,0.01160623]
[1761547647036,0.1728011,115740.0,115730.0,0.45922937]
[1761547647265,0.1728011,115740.0,115730.0,0.46922936]
[1761547647440,0.1728011,115740.0,115730.0,0.64204539]
[1761547648578,0.1738011,115740.0,115730.0,0.64204539]
[1761547649096,0.001,115740.0,115730.0,0.64204539]
[1761547649555,0.1738011,115740.0,115730.0,0.64204539]
[1761547649961,0.001,115740.0,115730.0,0.64204539]
[1761547650290,0.001,115740.0,115730.0,0.92280668]
[1761547652457,0.17278688,115750.0,115740.0,0.18280109]
[1761547652646,0.17278688,115750.0,115740.0,0.64042422]
[1761547653411,0.33612981,115760.0,115740.0,0.64042422]
[1761547653603,0.33612981,115760.0,115750.0,0.00999999]
[1761547654979,0.33712981,115760.0,115750.0,0.00999999]
[1761547655381,0.33712981,115760.0,115750.0,0.46762312]
[1761547655581,0.34012981,115760.0,115750.0,0.46762312]
[1761547656599,0.34012981,115760.0,115750.0,0.00999999]
[1761547656819,0.34012981,115760.0,115750.0,0.46762312]
[1761547660004,0.004,115760.0,115750.0,1.09963866]
[1761547660213,0.17677125,115760.0,115750.0,1.09963866]
[1761547660420,0.02333753,115790.0,115780.0,0.36512132]
[1761547660635,1.110529,115800.0,115790.0,0.52433271]
[1761547660811,1.110529,115800.0,115790.0,1.55247487]
[1761547661032,1.110529,115800.0,115790.0,1.56016717]
[1761547661246,1.110529,115800.0,115790.0,1.55247289]
[1761547661452,1.110529,115800.0,115790.0,1.09484976]
[1761547661664,1.110529,115800.0,115790.0,1.60289961]
[1761547662067,1.110529,115800.0,115790.0,1.6336688]
[1761547662280,1.110529,115800.0,115790.0,1.60589961]
[1761547662699,1.110529,115800.0,115790.0,0.35299999]
[1761547662900,1.110529,115800.0,115790.0,0.6701692]
[1761547663779,1.110529,115800.0,115790.0,0.64472557]
[1761547664802,1.110529,115800.0,115790.0,0.64172557]
[1761547665000,1.110529,115800.0,115790.0,0.18433271]
[1761547665177,1.110529,115800.0,115790.0,0.64672557]
[1761547665976,1.110529,115800.0,115790.0,0.64172557]
[1761547666191,1.110529,115800.0,115790.0,0.64372557]
[1761547666986,1.28324057,115800.0,115790.0,0.18633271]
[1761547667224,1.110529,115800.0,115790.0,0.64372557]
[1761547667902,1.110529,115800.0,115790.0,0.47099909]
[1761547667903,1.28324057,115800.0,115790.0,0.47099909]
[1761547668102,1.28324057,115800.0,115790.0,0.64372557]
[1761547669126,1.28324057,115800.0,115790.0,0.002]
[1761547669777,1.110529,115800.0,115790.0,1.55590376]
[1761547669992,1.110529,115800.0,115790.0,1.45742054]
[1761547670810,1.111529,115800.0,115790.0,1.44742055]
[1761547671065,1.111529,115800.0,115790.0,1.45542054]
[1761547671265,1.110529,115800.0,115790.0,1.45542054]
[1761547672116,1.110529,115800.0,115790.0,1.45842054]
[1761547672407,1.110529,115800.0,115790.0,1.01090786]
[1761547672594,1.110529,115800.0,115790.0,1.17810785]
[1761547673274,1.110529,115800.0,115790.0,1.16810786]
[1761547673499,1.110529,115800.0,115790.0,1.17810785]
[1761547674915,1.110529,115800.0,115790.0,1.16810786]
[1761547675128,1.110529,115800.0,115790.0,1.17810785]
[1761547675333,1.110529,115800.0,115790.0,1.01090786]
[1761547675533,1.110529,115800.0,115790.0,1.02090785]
[1761547676093,1.110529,115800.0,115790.0,1.01090786]
[1761547676308,1.110529,115800.0,115790.0,1.02090785]
[1761547676517,1.110529,115800.0,115790.0,1.01090786]
[1761547676721,1.110529,115800.0,115790.0,1.02090785]
[1761547679235,1.110529,115800.0,115790.0,1.56811972]
[1761547679450,1.110529,115800.0,115790.0,1.48146775]
[1761547679653,1.110529,115800.0,115790.0,1.51374054]
[1761547680853,1.110529,115800.0,115790.0,1.53670775]
[1761547681063,1.110529,115800.0,115790.0,1.51374054]
[1761547681272,1.110529,115800.0,115790.0,1.53760775]
[1761547681480,1.110529,115800.0,115790.0,1.08021489]
[1761547681685,1.110529,115800.0,115790.0,1.53760775]
[1761547682526,1.110529,115800.0,115790.0,1.53199775]
[1761547684143,1.110529,115800.0,115790.0,1.98939061]
[1761547684446,1.110529,115800.0,115790.0,1.53199775]
[1761547684842,1.110529,115800.0,115790.0,1.53211775]
[1761547685042,1.110529,115800.0,115790.0,1.47687775]
[1761547687486,1.110529,115800.0,115790.0,1.50764694]
[1761547687709,1.110529,115800.0,115790.0,1.47687775]
[1761547688257,1.110529,115800.0,115790.0,1.50764694]
[1761547689327,1.110529,115800.0,115790.0,1.53100216]
[1761547690186,1.110529,115800.0,115790.0,1.48467973]
[1761547690396,1.110529,115800.0,115790.0,1.50023297]
[1761547691025,1.110529,115800.0,115790.0,1.53102547]
[1761547691680,1.110529,115800.0,115790.0,1.32864556]
[1761547692097,1.110529,115800.0,115790.0,1.29785306]
[1761547692744,1.110529,115800.0,115790.0,1.29695306]
[1761547693637,1.110529,115800.0,115790.0,1.32774522]
[1761547693883,0.61900242,115800.0,115790.0,2.35427065]
[1761547694083,0.61900242,115800.0,115790.0,2.6326534]
[1761547694295,0.61900242,115800.0,115790.0,2.8058934]
[1761547694502,0.61900242,115800.0,115790.0,2.7969904]
[1761547694728,0.61900242,115800.0,115790.0,2.85561212]
[1761547695139,0.23024647,115800.0,115790.0,2.8089904]
[1761547695543,0.23024647,115800.0,115790.0,2.60661048]
[1761547695751,0.23024647,115800.0,115790.0,2.52630286]
[1761547695954,0.23024647,115800.0,115790.0,2.51630286]
[1761547696236,0.23024647,115800.0,115790.0,2.52630286]
[1761547696449,0.23024647,115800.0,115790.0,2.52530286]
[1761547696826,0.23024647,115800.0,115790.0,2.52626286]
[1761547697193,0.23024647,115800.0,115790.0,2.14559286]